bitfinex/quotes_SOLUSD_20250718
["timestamp","ask_amount","ask_price","bid_price","bid_amount"]
[1752800011173,0.913281,179.71,179.67,9.75711032]
[1752800011370,0.913281,179.71,179.68,31.86]
[1752800011559,0.913281,179.71,179.7,9.75711032]
[1752800011986,0.913281,179.71,179.7,42.28711032]
[1752800012177,0.913281,179.71,179.69,41.61711032]
[1752800012375,0.913281,179.71,179.69,42.28711032]
[1752800013485,1e-08,179.71,179.7,59.91657731]
[1752800013669,1e-08,179.71,179.7,59.36009429]
[1752800013879,1e-08,179.71,179.7,60.93139429]
[1752800014587,1e-08,179.71,179.7,51.17428397]
[1752800014805,1e-08,179.71,179.7,98.35622456]
[1752800015773,1e-08,179.71,179.7,101.15856707]
[1752800016381,1e-08,179.71,179.7,91.40145675]
[1752800016579,1e-08,179.71,179.7,101.71505009]
[1752800016781,0.48511,179.76,179.74,16.78468397]
[1752800016971,1e-08,179.76,179.75,68.13890461]
[1752800017177,0.20316,179.87,179.79,42.78468397]
[1752800017391,0.20316,179.87,179.84,9.75711032]
[1752800017688,0.20316,179.87,179.84,31.84]
[1752800017885,0.20316,179.87,179.84,41.59711032]
[1752800018387,0.20316,179.87,179.84,42.26711032]
[1752800018592,0.20316,179.87,179.84,31.84]
[1752800018976,15.52002134,179.87,179.79,16.78468397]
[1752800019180,9.75711032,179.85,179.8,31.84]
[1752800019380,0.72,179.84,179.8,31.84]
[1752800019793,6.48291102,179.87,179.8,41.59711032]
[1752800019981,9.75711032,179.85,179.8,41.59711032]
[1752800020180,9.75711032,179.85,179.8,31.84]
[1752800020495,35.75711032,179.81,179.72,31.82]
[1752800020695,5.5620446,179.79,179.72,41.57711032]
[1752800020867,5.5620446,179.79,179.73,9.75711032]
[1752800021175,5.5620446,179.79,179.72,41.57711032]
[1752800021370,0.72,179.78,179.72,31.82]
[1752800021575,0.72,179.78,179.71,9.75711032]
[1752800021576,9.75711032,179.77,179.71,9.75711032]
[1752800021781,0.72,179.78,179.71,9.75711032]
[1752800021985,0.72,179.78,179.7,31.82]
[1752800021986,0.72,179.78,179.72,9.75711032]
[1752800022293,10.47711032,179.78,179.72,9.75711032]
[1752800022493,0.72,179.78,179.72,9.75711032]
[1752800022805,15.31991851,179.77,179.71,9.75711032]
[1752800023104,0.72,179.82,179.76,9.75711032]
[1752800023271,26.0,179.83,179.78,9.75711032]
[1752800023470,36.47711032,179.83,179.78,9.75711032]
[1752800023669,26.72,179.83,179.78,9.75711032]
[1752800023891,36.47711032,179.83,179.78,9.75711032]
[1752800024086,32.28093662,179.83,179.77,9.75711032]
[1752800024289,42.03804694,179.83,179.77,9.75711032]
[1752800024490,32.28093662,179.83,179.77,9.75711032]
[1752800025084,42.03804694,179.83,179.77,9.75711032]
[1752800025281,16.03804694,179.83,179.78,9.75711032]
[1752800025481,16.03804694,179.83,179.78,0.67]
[1752800025684,16.03804694,179.83,179.76,5.5629074]
[1752800025685,5.56018904,179.85,179.8,9.75711032]
[1752800025893,0.72,179.84,179.79,41.57711032]
[1752800026085,0.72,179.83,179.79,31.82]
[1752800026609,9.75711032,179.82,179.79,31.82]
[1752800026894,16.03764037,179.84,179.79,31.82]
[1752800027077,0.72,179.83,179.79,31.82]
[1752800027479,0.72,179.82,179.79,31.82]
[1752800027709,9.75711032,179.83,179.79,31.82]
[1752800027880,0.72,179.82,179.79,31.82]
[1752800028608,9.75711032,179.83,179.79,31.82]
[1752800028788,5.56053005,179.84,179.79,42.24711032]
[1752800029175,6.28022507,179.85,179.8,0.67]
[1752800029375,10.47711032,179.85,179.8,0.67]
[1752800029682,16.03738764,179.85,179.8,0.67]
[1752800029995,16.03738764,179.85,179.79,47.13910277]
[1752800030192,5.56027732,179.85,179.79,47.13910277]
[1752800030396,9.75711032,179.85,179.79,38.05199245]
[1752800030606,9.75711032,179.84,179.79,32.49]
[1752800030896,5.56050071,179.84,179.79,32.49]
[1752800031078,5.56050071,179.84,179.79,42.24711032]
[1752800031275,9.75711032,179.85,179.79,47.80912022]
[1752800031480,15.31738288,179.85,179.79,38.0520099]
[1752800031702,15.31738288,179.85,179.79,47.80912022]
[1752800032012,10.47711032,179.86,179.8,9.75711032]
[1752800032298,10.47711032,179.86,179.79,38.0520099]
[1752800032504,10.47711032,179.86,179.8,9.75711032]
[1752800032713,9.75711032,179.86,179.8,9.75711032]
[1752800032891,9.96027032,179.87,179.81,15.98848664]
[1752800033097,5.7628086,179.87,179.81,0.67]
[1752800033299,9.75711032,179.84,179.79,31.82]
[1752800033503,0.72,179.84,179.79,31.82]
[1752800033814,0.72,179.83,179.79,31.82]
[1752800034415,6.4828086,179.87,179.8,0.67]
[1752800034581,9.75711032,179.85,179.8,0.67]
[1752800034777,9.75711032,179.85,179.79,41.57711032]
[1752800034778,10.47711032,179.85,179.79,41.57711032]
[1752800035007,9.75711032,179.83,179.79,31.82]
[1752800035315,10.47711032,179.83,179.79,31.82]
[1752800035608,0.72,179.83,179.79,31.82]
[1752800035816,10.47711032,179.82,179.76,9.75711032]
[1752800035994,10.47711032,179.82,179.77,31.8]
[1752800036187,0.72,179.81,179.77,31.8]
[1752800036389,0.72,179.82,179.77,41.55711032]
[1752800036609,9.75711032,179.82,179.77,31.8]
[1752800036811,0.72,179.81,179.77,31.8]
[1752800037310,15.31867407,179.81,179.75,0.67]
[1752800037510,9.75711032,179.77,179.71,0.67]
[1752800037729,9.75711032,179.77,179.69,5.86485898]
[1752800037730,26.0,179.78,179.69,0.97]
[1752800037884,9.75711032,179.74,179.71,31.8]
[1752800038504,0.72,179.76,179.71,31.8]
[1752800038713,9.75711032,179.75,179.71,31.8]
[1752800038885,0.72,179.76,179.71,31.8]
[1752800039080,9.75711032,179.75,179.71,31.8]
[1752800039291,9.75711032,179.74,179.71,31.8]
[1752800039708,16.02039265,179.75,179.71,31.8]
[1752800040004,9.75711032,179.75,179.71,32.48]
[1752800040208,9.75711032,179.76,179.71,32.48]
[1752800040404,10.45711032,179.76,179.71,32.48]
[1752800040594,9.75711032,179.75,179.71,32.48]
[1752800040904,0.7,179.76,179.71,32.48]
[1752800041113,15.31977372,179.77,179.72,0.68]
[1752800041408,9.75711032,179.75,179.71,31.8]
[1752800041702,0.7,179.76,179.72,0.68]
[1752800041703,9.75711032,179.76,179.72,0.68]
[1752800041908,5.5626634,179.77,179.72,0.68]
[1752800042138,15.31977372,179.77,179.72,10.43711032]
[1752800042314,5.5626634,179.77,179.72,10.43711032]
[1752800042636,0.7,179.81,179.76,9.75711032]
[1752800042817,9.75711032,179.82,179.77,0.68]
[1752800043131,16.01830082,179.82,179.77,0.68]
[1752800043732,16.01830082,179.82,179.76,41.55711032]
[1752800043733,16.01830082,179.82,179.76,31.8]
[1752800043907,9.75711032,179.8,179.76,31.8]
[1752800044107,9.75711032,179.79,179.76,31.8]
[1752800044414,9.75711032,179.81,179.76,32.48]
[1752800044818,5.56027067,179.85,179.78,9.75711032]
[1752800045023,5.56027067,179.85,179.76,41.55711032]
[1752800045024,9.75711032,179.82,179.76,41.55711032]
[1752800045225,9.75711032,179.83,179.77,9.75711032]
[1752800045401,5.56093326,179.83,179.77,9.75711032]
[1752800045774,9.75711032,179.83,179.77,15.31958544]
[1752800045924,9.75711032,179.83,179.77,6.24247512]
[1752800046102,6.26053468,179.84,179.78,9.75711032]
[1752800046306,9.75711032,179.83,179.78,9.75711032]
[1752800046531,10.45711032,179.83,179.78,15.31940829]
[1752800046732,16.01791838,179.83,179.78,9.75711032]
[1752800046937,10.45711032,179.83,179.78,9.75711032]
[1752800047141,0.7,179.82,179.77,0.68]
[1752800047321,10.45711032,179.82,179.76,47.11997477]
[1752800047521,10.45711032,179.82,179.76,31.8]
[1752800047723,10.45711032,179.82,179.76,41.55711032]
[1752800048033,9.75711032,179.8,179.76,31.8]
[1752800048258,0.7,179.8,179.76,41.55711032]
[1752800048410,10.45711032,179.82,179.76,42.23711032]
[1752800048743,5.56142594,179.81,179.76,41.55711032]
[1752800049042,6.26142594,179.81,179.76,41.55711032]
[1752800049246,9.75711032,179.82,179.76,47.80008266]
[1752800049247,15.31832604,179.82,179.76,47.80008266]
[1752800049552,16.0179939,179.83,179.77,9.75711032]
[1752800050047,5.56088358,179.83,179.77,9.75711032]
[1752800050256,9.75711032,179.85,179.79,9.75711032]
[1752800050454,9.75711032,179.82,179.75,0.68]
[1752800050623,0.7,179.82,179.76,41.53711032]
[1752800050824,10.45711032,179.82,179.76,41.53711032]
[1752800051047,9.75711032,179.81,179.76,31.78]
[1752800051346,0.7,179.8,179.76,31.78]
[1752800051731,9.75711032,179.81,179.76,31.78]
[1752800051934,0.7,179.79,179.76,31.78]
[1752800053123,0.7,179.78,179.76,31.78]
[1752800053345,10.45711032,179.77,179.71,31.78]
[1752800053651,0.7,179.77,179.72,9.75711032]
[1752800053848,6.26233454,179.79,179.72,10.43711032]
[1752800054026,6.26233454,179.79,179.74,9.75711032]
[1752800054224,5.56178867,179.8,179.75,10.43711032]
[1752800054429,10.45711032,179.79,179.72,0.68]
[1752800054640,10.45711032,179.79,179.73,9.75711032]
[1752800054844,10.45711032,179.79,179.72,0.68]
[1752800055058,5.56235398,179.78,179.72,0.68]
[1752800055230,5.56235398,179.78,179.73,9.75711032]
[1752800055551,6.26235398,179.78,179.74,9.75711032]
[1752800056054,0.7,179.77,179.71,38.02451663]
[1752800056242,0.7,179.77,179.72,9.75711032]
[1752800056445,0.7,179.76,179.71,31.78]
[1752800056749,0.7,179.78,179.74,9.75711032]
[1752800057051,15.31915492,179.79,179.72,0.68]
[1752800057254,0.7,179.78,179.72,16.00129124]
[1752800057547,9.75711032,179.77,179.72,0.68]
[1752800057738,0.7,179.77,179.72,10.43711032]
[1752800057932,16.01915492,179.79,179.73,10.43711032]
[1752800058323,16.01915492,179.79,179.73,0.68]
[1752800058528,16.01915492,179.79,179.73,10.43711032]
[1752800058752,9.75711032,179.78,179.73,0.68]
[1752800058958,15.31958255,179.78,179.73,0.68]
[1752800059141,6.26247223,179.78,179.73,10.43711032]
[1752800059652,1.6546,179.89,179.77,9.75711032]
[1752800059953,10.45711032,179.85,179.79,9.75711032]
[1752800060136,0.7,179.85,179.79,9.75711032]
[1752800060346,0.7,179.85,179.8,9.75711032]
[1752800060546,0.7,179.85,179.8,10.43711032]
[1752800060737,0.90316,179.87,179.81,0.68]
[1752800060938,16.21990147,179.87,179.81,10.43711032]
[1752800061238,9.75711032,179.86,179.8,15.31877026]
[1752800061554,0.20316,179.87,179.84,9.75711032]
[1752800061937,0.20316,179.87,179.83,9.75711032]
[1752800062630,0.20316,179.87,179.82,31.76]
[1752800062832,0.7,179.86,179.82,31.76]
[1752800063156,9.96027032,179.87,179.82,32.44]
[1752800063354,0.23316,179.87,179.82,47.75813249]
[1752800063559,0.23316,179.87,179.82,42.19711032]
[1752800063736,10.69027032,179.87,179.82,32.44]
[1752800063937,0.23316,179.87,179.82,47.07818317]
[1752800064145,0.23316,179.87,179.83,0.68]
[1752800064855,0.7,179.86,179.82,31.76]
[1752800065041,0.7,179.85,179.82,31.76]
[1752800065246,0.7,179.85,179.8,10.43711032]
[1752800065761,0.7,179.85,179.8,15.99876165]
[1752800066058,0.7,179.85,179.8,10.43711032]
[1752800066256,0.7,179.84,179.79,41.51711032]
[1752800066457,0.7,179.84,179.79,47.07906118]
[1752800066649,0.7,179.84,179.79,47.75906118]
[1752800066856,0.7,179.84,179.79,42.19711032]
[1752800067760,0.7,179.83,179.79,31.76]
[1752800068663,9.75711032,179.84,179.8,0.68]
[1752800069080,10.40711032,179.84,179.79,31.76]
[1752800069279,10.40711032,179.84,179.79,32.42]
[1752800069565,15.96764516,179.84,179.79,32.42]
[1752800069740,0.65,179.83,179.79,31.76]
[1752800070162,15.31764516,179.84,179.79,32.42]
[1752800070364,0.65,179.83,179.79,32.42]
[1752800070752,0.23316,179.87,179.8,10.41711032]
[1752800070939,0.23316,179.87,179.83,9.75711032]
[1752800071142,0.23316,179.87,179.83,41.49711032]
[1752800071339,0.23316,179.87,179.84,0.66]
[1752800071656,0.23316,179.87,179.85,0.66]
[1752800071852,0.23316,179.87,179.83,37.96066397]
[1752800072173,0.23316,179.87,179.84,10.41711032]
[1752800072465,0.23316,179.87,179.84,0.66]
[1752800073769,0.23316,179.87,179.84,6.22039661]
[1752800074067,0.23316,179.87,179.84,37.96039661]
[1752800074467,0.23316,179.87,179.84,32.4]
[1752800074669,0.23316,179.87,179.84,37.96046781]
[1752800075062,0.23316,179.87,179.84,32.4]
[1752800075648,0.23316,179.87,179.84,0.66]
[1752800075849,0.23316,179.87,179.83,31.72]
[1752800076169,0.23316,179.87,179.83,32.38]
[1752800076760,0.23316,179.87,179.83,37.28074307]
[1752800076964,0.23316,179.87,179.84,0.66]
[1752800077272,16.19987113,179.87,179.82,0.66]
[1752800077472,9.75711032,179.85,179.81,31.72]
[1752800077876,0.23316,179.87,179.82,10.41711032]
[1752800078051,9.75711032,179.87,179.82,0.66]
[1752800078368,9.75711032,179.87,179.83,0.66]
[1752800078561,15.31663875,179.88,179.83,0.66]
[1752800078769,15.96663875,179.88,179.83,0.66]
[1752800079073,10.40711032,179.87,179.81,42.13711032]
[1752800079675,0.1,179.89,179.82,26.54179429]
[1752800079875,9.75711032,179.85,179.81,31.72]
[1752800080068,10.40711032,179.85,179.81,31.72]
[1752800080375,9.75711032,179.83,179.79,0.66]
[1752800080573,9.75711032,179.82,179.79,0.66]
[1752800080876,9.75711032,179.83,179.79,0.66]
[1752800081057,10.40711032,179.83,179.78,31.72]
[1752800081250,9.75711032,179.79,179.75,0.66]
[1752800081452,26.0,179.83,179.73,0.66]
[1752800081671,9.75711032,179.78,179.73,32.36]
[1752800081863,9.75711032,179.78,179.73,37.92383371]
[1752800082064,9.75711032,179.78,179.74,5.86353995]
[1752800082377,9.75711032,179.78,179.74,6.52353995]
[1752800082871,9.75711032,179.75,179.74,0.3]
[1752800083449,0.65,179.75,179.74,0.3]
[1752800083658,10.40711032,179.75,179.74,0.3]
[1752800083977,15.97039265,179.75,179.74,0.3]
[1752800084273,29.87859849,179.75,179.67,31.7]
[1752800084473,9.75711032,179.7,179.66,0.3]
[1752800084972,10.40711032,179.7,179.66,0.3]
[1752800085173,0.65,179.7,179.66,0.3]
[1752800085367,10.40711032,179.7,179.66,0.3]
[1752800085782,15.97194059,179.7,179.66,0.3]
[1752800087255,0.65,179.73,179.66,0.96]
[1752800087455,35.75711032,179.71,179.66,0.96]
[1752800087762,9.75711032,179.7,179.66,0.96]
[1752800088260,9.75711032,179.71,179.67,0.66]
[1752800088855,9.75711032,179.69,179.66,0.3]
[1752800089057,10.40711032,179.7,179.66,0.3]
[1752800089683,0.65,179.7,179.66,0.3]
[1752800090064,0.65,179.7,179.65,10.41711032]
[1752800090267,0.65,179.7,179.65,6.2262633]
[1752800090484,6.21491716,179.7,179.65,0.66]
[1752800090661,6.21491716,179.7,179.65,10.41711032]
[1752800090860,9.75711032,179.68,179.62,0.66]
[1752800091174,9.75711032,179.68,179.61,31.7]
[1752800091175,0.65,179.67,179.61,37.2673705]
[1752800091370,10.40711032,179.67,179.61,47.02448082]
[1752800091577,10.40711032,179.67,179.61,37.2673705]
[1752800091779,10.40711032,179.67,179.61,47.02448082]
[1752800092473,10.40711032,179.67,179.61,47.68448082]
[1752800092669,10.40711032,179.69,179.64,9.75711032]
[1752800092882,9.75711032,179.71,179.66,9.75711032]
[1752800093184,9.75711032,179.7,179.61,37.2673705]
[1752800093366,9.75711032,179.69,179.63,10.41711032]
[1752800093773,10.40711032,179.69,179.63,10.41711032]
[1752800093968,15.97234507,179.69,179.63,10.41711032]
[1752800094176,9.75711032,179.68,179.62,15.32413805]
[1752800094372,6.21523475,179.69,179.63,9.75711032]
[1752800094587,0.65,179.72,179.66,9.75711032]
[1752800094788,10.40711032,179.72,179.66,9.75711032]
[1752800094995,9.75711032,179.71,179.65,10.41711032]
[1752800095486,0.65,179.72,179.67,9.75711032]
[1752800095664,2.90058689,179.77,179.69,9.75711032]
[1752800095665,10.40711032,179.75,179.69,9.75711032]
[1752800095860,9.75711032,179.74,179.68,10.41711032]
[1752800096065,15.320888,179.74,179.68,10.41711032]
[1752800096373,15.32073273,179.74,179.68,15.98252467]
[1752800096571,9.75711032,179.75,179.7,9.75711032]
[1752800096894,15.31984294,179.77,179.71,10.41711032]
[1752800097064,9.75711032,179.76,179.71,0.66]
[1752800097580,5.56273262,179.77,179.67,42.11711032]
[1752800097581,9.75711032,179.73,179.67,42.11711032]
[1752800097779,9.75711032,179.74,179.68,9.75711032]
[1752800098188,9.75711032,179.72,179.67,31.7]
[1752800098490,6.2139014,179.73,179.67,31.7]
[1752800098491,9.75711032,179.7,179.67,31.7]
[1752800098878,10.40711032,179.71,179.67,31.7]
[1752800099193,10.44711032,179.7,179.67,31.7]
[1752800099503,9.75711032,179.71,179.67,31.7]
[1752800099672,5.5639014,179.73,179.68,0.66]
[1752800099877,0.69,179.72,179.67,41.45711032]
[1752800100181,5.5639014,179.73,179.68,0.66]
[1752800100379,15.32101172,179.73,179.68,0.66]
[1752800100587,16.01101172,179.73,179.68,0.66]
[1752800100781,9.75711032,179.71,179.67,31.7]
[1752800100972,9.75711032,179.69,179.67,31.7]
[1752800101168,10.44711032,179.68,179.62,0.66]
[1752800101371,45.47365491,179.73,179.61,31.68]
[1752800101372,9.75711032,179.65,179.61,31.68]
[1752800101568,9.75711032,179.64,179.61,31.68]
[1752800101793,10.44711032,179.64,179.61,31.68]
[1752800101999,0.69,179.64,179.61,31.68]
[1752800102209,10.44711032,179.64,179.61,31.68]
[1752800102389,9.75711032,179.63,179.61,31.68]
[1752800102587,10.44711032,179.62,179.56,17.44468397]
[1752800102797,9.75711032,179.61,179.57,31.68]
[1752800103292,9.75711032,179.63,179.58,10.41711032]
[1752800103599,10.44711032,179.63,179.58,0.66]
[1752800104292,10.44711032,179.62,179.57,31.68]
[1752800104794,10.44711032,179.61,179.57,31.68]
[1752800105207,10.44711032,179.6,179.57,31.68]
[1752800105892,5.5667215,179.64,179.58,10.41711032]
[1752800106096,15.3235158,179.65,179.59,9.75711032]
[1752800106299,9.75711032,179.64,179.58,10.41711032]
[1752800106489,9.75711032,179.64,179.58,15.98560934]
[1752800106688,5.56640548,179.65,179.58,15.98560934]
[1752800106904,15.3235158,179.65,179.59,9.75711032]
[1752800107429,5.56699883,179.63,179.58,10.41711032]
[1752800107614,16.01410915,179.63,179.58,0.66]
[1752800107789,16.01410915,179.63,179.57,31.68]
[1752800107790,9.75711032,179.61,179.57,31.68]
[1752800107988,10.44711032,179.61,179.57,31.68]
[1752800108189,0.69,179.61,179.57,31.68]
[1752800108409,9.75711032,179.62,179.57,32.34]
[1752800108614,16.01410915,179.63,179.58,0.66]
[1752800108915,15.32410915,179.63,179.59,0.66]
[1752800109102,15.32389112,179.64,179.59,0.66]
[1752800109409,5.56645676,179.65,179.59,6.22814999]
[1752800109585,15.32356708,179.65,179.6,0.66]
[1752800110013,16.01356708,179.65,179.6,0.66]
[1752800110202,9.75711032,179.64,179.6,0.66]
[1752800110598,0.69,179.64,179.59,9.75711032]
[1752800110809,0.69,179.64,179.59,10.41711032]
[1752800110983,10.44711032,179.63,179.57,31.68]
[1752800111183,0.69,179.63,179.57,47.00591666]
[1752800111388,9.75711032,179.64,179.59,9.75711032]
[1752800111598,5.56682352,179.64,179.6,0.06]
[1752800111805,16.01393384,179.64,179.6,0.06]
[1752800112008,10.44711032,179.63,179.6,0.06]
[1752800112395,9.75711032,179.61,179.6,0.06]
[1752800112802,10.44711032,179.61,179.6,0.06]
[1752800113019,15.32393384,179.64,179.6,0.06]
[1752800113598,16.01393384,179.64,179.6,0.06]
[1752800114695,5.56645079,179.65,179.6,10.47711032]
[1752800115101,0.69,179.67,179.6,10.47711032]
[1752800115102,16.0131512,179.67,179.61,9.75711032]
[1752800115320,6.25604088,179.67,179.62,9.75711032]
[1752800115506,16.0131512,179.67,179.62,0.66]
[1752800115822,16.0131512,179.67,179.61,9.75711032]
[1752800115823,0.69,179.66,179.61,41.39711032]
[1752800115996,0.69,179.66,179.61,42.05711032]
[1752800116196,0.69,179.65,179.61,41.39711032]
[1752800116397,0.69,179.64,179.61,41.39711032]
[1752800116802,0.69,179.64,179.61,31.64]
[1752800117002,10.44711032,179.66,179.61,41.39711032]
[1752800117412,10.44711032,179.65,179.61,31.64]
[1752800117605,5.56699883,179.63,179.6,0.06]
[1752800118023,16.01410915,179.63,179.6,0.06]
[1752800118528,0.69,179.62,179.6,0.06]
[1752800118730,6.25755251,179.62,179.6,0.06]
[1752800118928,10.44711032,179.61,179.6,0.06]
[1752800119617,0.69,179.61,179.6,0.06]
[1752800119807,15.58345201,179.64,179.6,0.06]
[1752800119808,15.32419815,179.63,179.6,0.06]
[1752800120016,10.44711032,179.64,179.6,0.06]
[1752800120527,9.75711032,179.63,179.6,0.06]
[1752800120723,10.44711032,179.63,179.6,0.06]
[1752800120927,9.75711032,179.62,179.6,0.06]
[1752800121116,16.01441908,179.62,179.6,0.06]
[1752800121427,10.44711032,179.61,179.6,0.06]
[1752800122540,60.54162981,179.67,179.6,0.06]
[1752800122541,5.56703965,179.63,179.6,0.06]
[1752800122710,9.75711032,179.66,179.6,10.47711032]
[1752800123221,15.32323191,179.66,179.6,16.04487157]
[1752800123918,0.69,179.67,179.61,9.75711032]
[1752800124132,10.44711032,179.67,179.6,6.28776125]
[1752800124426,10.44711032,179.67,179.61,10.41711032]
[1752800124603,5.56513996,179.69,179.61,9.75711032]
[1752800124811,5.56513996,179.69,179.64,9.75711032]
[1752800125027,36.44711032,179.7,179.62,0.66]
[1752800125028,5.56575944,179.67,179.62,10.41711032]
[1752800125339,5.56575944,179.67,179.62,0.66]
[1752800125638,0.69,179.72,179.66,9.75711032]
[1752800125849,0.69,179.72,179.67,9.75711032]
[1752800126405,0.69,179.72,179.66,0.66]
[1752800126626,5.59366109,179.74,179.69,9.75711032]
[1752800126929,0.03,179.74,179.7,10.41711032]
[1752800127229,0.03,179.74,179.71,9.75711032]
[1752800127426,0.03,179.74,179.73,9.75711032]
[1752800127840,0.03,179.74,179.69,16.78468397]
[1752800128012,0.03,179.74,179.7,41.37711032]
[1752800128207,0.03,179.74,179.7,42.03711032]
[1752800129229,0.03,179.74,179.71,10.46711032]
[1752800129422,0.03,179.74,179.72,9.75711032]
[1752800129631,0.03,179.74,179.73,9.75711032]
[1752800129829,0.03,179.74,179.73,10.46711032]
[1752800131127,0.03,179.74,179.73,9.75711032]
[1752800131315,0.03,179.74,179.72,31.6]
[1752800131513,0.03,179.74,179.71,16.78468397]
[1752800131514,0.03,179.74,179.71,58.85179429]
[1752800131725,0.03,179.74,179.71,0.71]
[1752800132141,0.03,179.74,179.7,41.35711032]
[1752800132343,0.03,179.74,179.7,31.6]
[1752800132548,0.03,179.74,179.7,41.35711032]
[1752800133131,0.03,179.74,179.7,31.6]
[1752800133338,0.75,179.74,179.7,31.6]
[1752800133928,9.78711032,179.74,179.7,31.6]
[1752800134146,0.72,179.73,179.7,31.6]
[1752800134335,0.03,179.74,179.7,31.6]
[1752800134535,0.03,179.74,179.7,32.31]
[1752800134842,0.03,179.74,179.7,31.6]
[1752800135237,10.50711032,179.74,179.7,31.6]
[1752800135434,0.03,179.74,179.69,9.75711032]
[1752800135641,0.03,179.74,179.71,0.71]
[1752800136327,0.03,179.74,179.7,9.75711032]
[1752800136530,0.03,179.74,179.7,10.46711032]
[1752800136750,0.03,179.74,179.7,0.71]
[1752800137653,0.03,179.74,179.7,10.46711032]
[1752800140042,0.03,179.74,179.73,28.13619429]
[1752800140243,0.03,179.74,179.73,59.69619429]
[1752800140439,0.03,179.74,179.73,60.40619429]
[1752800140635,0.03,179.82,179.73,60.40619429]
[1752800140854,0.03,179.82,179.79,9.75711032]
[1752800141234,0.03,179.82,179.79,10.46711032]
[1752800141835,0.03,179.82,179.77,37.10246242]
[1752800141836,0.03,179.82,179.8,10.46711032]
[1752800142259,0.03,179.82,179.81,0.71]
[1752800142761,0.03,179.82,179.81,10.46711032]
[1752800143380,0.03,179.82,179.81,32.25]
[1752800143557,0.03,179.82,179.81,42.00711032]
[1752800143861,0.03,179.82,179.81,47.56853626]
[1752800144061,0.03,179.82,179.81,42.00711032]
[1752800145470,0.03,179.82,179.77,0.71]
[1752800145660,0.75,179.82,179.78,31.52]
[1752800145862,5.59121225,179.82,179.78,31.52]
[1752800146043,5.59121225,179.82,179.79,10.46711032]
[1752800146044,0.03,179.82,179.79,10.46711032]
[1752800146245,0.03,179.82,179.81,9.75711032]
[1752800146650,0.03,179.82,179.81,10.46711032]
[1752800147456,0.03,179.82,179.81,0.71]
[1752800148076,0.03,179.82,179.81,47.54853626]
[1752800148451,0.03,179.82,179.81,41.98711032]
[1752800150555,0.03,179.82,179.76,0.71]
[1752800150889,0.03,179.82,179.78,9.75711032]
[1752800151058,0.03,179.82,179.78,10.46711032]
[1752800151968,0.03,179.82,179.78,0.71]
[1752800152267,0.03,179.82,179.79,0.71]
[1752800152467,0.03,179.82,179.78,10.46711032]
[1752800152647,0.03,179.82,179.8,9.75711032]
[1752800152847,0.03,179.82,179.81,41.23711032]
[1752800153260,0.03,179.82,179.81,41.94711032]
[1752800153682,0.03,179.82,179.79,0.71]
[1752800153885,0.03,179.82,179.79,31.48]
[1752800154771,0.03,179.82,179.76,6.27270851]
[1752800155092,0.75,179.82,179.78,31.48]
[1752800155383,0.75,179.82,179.78,41.23711032]
[1752800155384,0.03,179.82,179.78,41.23711032]
[1752800155563,0.03,179.82,179.79,0.71]
[1752800160279,0.03,179.82,179.78,31.48]
[1752800160488,0.03,179.82,179.78,41.88711032]
[1752800160876,0.74,179.82,179.78,32.13]
[1752800161075,0.74,179.82,179.75,9.75711032]
[1752800161076,10.46711032,179.81,179.75,9.75711032]
[1752800161280,9.75711032,179.79,179.74,0.68]
[1752800161486,0.71,179.78,179.74,0.03]
[1752800162310,6.27257114,179.78,179.74,0.03]
[1752800163204,6.27257114,179.78,179.74,9.78711032]
[1752800163417,5.56212614,179.79,179.75,0.65]
[1752800164173,6.27212614,179.79,179.74,9.78711032]
[1752800164370,0.71,179.78,179.74,9.78711032]